bitfinex/quotes_ETHUSD_20220115
["timestamp","ask_amount","ask_price","bid_price","bid_amount"]
[1642223504706,0.045463,3307.5,3307.4,0.0073895]
[1642223505410,0.35513047,3307.7,3307.4,0.0073895]
[1642223505411,0.045463,3307.6,3307.4,0.0073895]
[1642223505606,0.045463,3307.5,3307.4,0.0073895]
[1642223505806,0.045463,3307.6,3307.4,0.0073895]
[1642223507008,0.045463,3307.5,3307.4,0.0073895]
[1642223509657,1.11130047,3307.7,3307.4,0.0073895]
[1642223509859,0.045463,3307.6,3307.4,0.0073895]
[1642223510758,0.045463,3307.5,3307.4,0.0073895]
[1642223513809,0.090926,3307.5,3307.4,0.0073895]
[1642223514008,0.045463,3307.5,3307.4,0.0073895]
[1642223515009,0.345463,3307.5,3307.4,0.0073895]
[1642223516555,1.858033,3307.5,3307.4,0.0073895]
[1642223516958,2.858033,3307.5,3307.4,0.0073895]
[1642223519513,1.345463,3307.5,3307.4,0.0073895]
[1642223519910,0.645463,3307.5,3307.4,0.0073895]
[1642223520111,0.045463,3307.5,3307.4,0.0073895]
[1642223520511,1.35627,3307.6,3307.4,0.0073895]
[1642223520711,0.045463,3307.5,3307.4,0.0073895]
[1642223526360,0.801733,3307.5,3307.4,0.0073895]
[1642223527006,1.801733,3307.5,3307.4,0.0073895]
[1642223527208,0.801733,3307.5,3307.4,0.0073895]
[1642223527409,1.801733,3307.5,3307.4,0.0073895]
[1642223527605,0.801733,3307.5,3307.4,0.0073895]
[1642223527806,1.801733,3307.5,3307.4,0.0073895]
[1642223528606,0.801733,3307.5,3307.4,0.0073895]
[1642223531156,0.801733,3307.5,3307.3,3.0]
[1642223531356,0.045463,3307.4,3307.3,3.0]
[1642223531755,0.045463,3307.4,3307.3,3.00795793]
[1642223532459,1.24401797,3307.4,3307.3,3.00795793]
[1642223532660,1.84401797,3307.4,3307.3,3.00795793]
[1642223532957,2.84401797,3307.4,3307.3,3.00795793]
[1642223538857,1.645463,3307.4,3307.3,3.00795793]
[1642223539057,0.645463,3307.4,3307.3,3.00795793]
[1642223539257,1.645463,3307.4,3307.3,3.00795793]
[1642223539660,0.645463,3307.4,3307.3,3.00795793]
[1642223539859,1.645463,3307.4,3307.3,3.00795793]
[1642223540463,0.645463,3307.4,3307.3,3.00795793]
[1642223540663,1.645463,3307.4,3307.3,3.00795793]
[1642223540863,0.645463,3307.4,3307.3,3.00795793]
[1642223541063,1.645463,3307.4,3307.3,3.00795793]
[1642223541262,0.645463,3307.4,3307.3,3.00795793]
[1642223541463,1.345463,3307.4,3307.3,3.00795793]
[1642223542509,0.345463,3307.4,3307.3,3.00795793]
[1642223549606,3.73964382,3307.4,3307.3,3.00795793]
[1642223550010,4.73964382,3307.4,3307.3,3.00795793]
[1642223552207,5.52941893,3307.4,3307.3,3.00795793]
[1642223559111,2.13523811,3307.4,3307.3,3.00795793]
[1642223559511,1.13523811,3307.4,3307.3,3.00795793]
[1642223559713,2.13523811,3307.4,3307.3,3.00795793]
[1642223559914,1.13523811,3307.4,3307.3,3.00795793]
[1642223560114,2.13523811,3307.4,3307.3,3.00795793]
[1642223561662,2.13523811,3307.4,3307.3,3.0]
[1642223562061,1.13523811,3307.4,3307.3,3.0]
[1642223562262,2.13523811,3307.4,3307.3,3.0]
[1642223562864,1.13523811,3307.4,3307.3,3.0]
[1642223563062,2.13523811,3307.4,3307.3,3.0]
[1642223563262,1.13523811,3307.4,3307.3,3.0]
[1642223563466,2.13523811,3307.4,3307.3,3.0]
[1642223564509,1.13523811,3307.4,3307.3,3.0]
[1642223564714,2.13523811,3307.4,3307.3,3.0]
[1642223565109,1.13523811,3307.4,3307.3,3.0]
[1642223565311,2.13523811,3307.4,3307.3,3.0]
[1642223566009,1.13523811,3307.4,3307.3,3.0]
[1642223566212,2.13523811,3307.4,3307.3,3.0]
[1642223566409,1.13523811,3307.4,3307.3,3.0]
[1642223566610,2.13523811,3307.4,3307.3,3.0]
[1642223567512,1.13523811,3307.4,3307.3,3.0]
[1642223569459,0.345463,3307.4,3307.3,3.0]
[1642223577662,0.50295441,3307.4,3307.3,3.0]
[1642223577863,0.345463,3307.4,3307.3,3.0]
[1642223579310,0.345463,3307.4,3307.0,1.6636]
[1642223579510,0.81568485,3307.2,3307.0,1.6636]
[1642223579711,0.75644,3307.2,3307.1,0.00909477]
[1642223579909,2.101903,3307.2,3307.1,0.00909477]
[1642223580411,5.76158841,3307.2,3307.1,0.00909477]
[1642223583460,5.76158841,3307.2,3307.1,3.00909477]
[1642223584264,3.3921962,3307.2,3307.1,3.00909477]
[1642223584662,5.76171407,3307.2,3307.1,0.00909477]
[1642223585764,5.71625107,3307.2,3307.1,0.00909477]
[1642223585964,5.76171407,3307.2,3307.1,0.00909477]
[1642223595906,3.3921962,3307.2,3307.1,0.00909477]
[1642223596107,2.05644,3307.2,3307.1,0.00909477]
[1642223596307,1.35644,3307.2,3307.1,0.00909477]
[1642223596507,1.401903,3307.2,3307.1,0.00909477]
[1642223597708,2.51045696,3307.2,3307.1,0.00909477]
[1642223598159,3.51045696,3307.2,3307.1,0.00909477]
[1642223598360,2.401903,3307.2,3307.1,0.00909477]
[1642223598560,1.24605429,3307.4,3307.1,2.65077224]
[1642223598561,0.045463,3307.4,3307.1,2.65077224]
[1642223598761,0.045463,3307.6,3307.1,0.00909477]
[1642223598961,0.045463,3307.7,3307.2,0.00852635]
[1642223599964,0.045463,3307.6,3307.2,0.00852635]
[1642223601262,0.75622,3307.5,3307.2,0.00852635]
[1642223601463,0.045463,3307.3,3307.2,0.00852635]
[1642223601710,1.35622,3307.5,3307.2,0.00852635]
[1642223601909,0.045463,3307.4,3307.2,0.00852635]
[1642223602514,0.1673839,3307.3,3307.2,0.00852635]
[1642223602709,0.1219209,3307.3,3307.2,0.00852635]
[1642223604512,1.6346309,3307.3,3307.2,0.00852635]
[1642223604711,4.05,3307.2,3307.0,1.6636]
[1642223604911,2.445463,3307.1,3307.0,1.6636]
[1642223605214,3.445463,3307.1,3307.0,0.00113685]
[1642223605661,3.445463,3307.1,3306.6,3.1467]
[1642223605662,0.75652,3306.9,3306.7,0.00284212]
[1642223605961,2.65734902,3306.8,3306.7,0.00284212]
[1642223606162,3.30281202,3306.8,3306.7,0.00284212]
[1642223606461,4.30281202,3306.8,3306.6,0.00341054]
[1642223606662,1.0,3306.7,3306.6,0.00341054]
[1642223606864,1.0,3306.7,3306.5,0.00397897]
[1642223607062,1.0,3306.7,3306.1,1.2392]
[1642223607063,0.847496,3306.6,3306.3,0.00511581]
[1642223607264,5.695463,3306.4,3306.3,0.00511581]
[1642223607464,7.28074507,3306.4,3306.2,0.00568424]
[1642223607663,3.35,3306.2,3305.5,1.2482]
[1642223607869,0.045463,3305.8,3305.5,1.2482]
[1642223608063,0.045463,3305.7,3305.5,1.2482]
[1642223608265,0.045463,3305.6,3305.2,3.312]
[1642223608467,0.802273,3305.6,3305.2,3.312]
[1642223608664,0.045463,3305.5,3305.1,4.8979]
[1642223608864,0.36763311,3305.3,3304.9,1.2479]
[1642223609113,1.41309611,3305.3,3305.2,0.00511581]
[1642223609308,1.71309611,3305.3,3305.2,0.00511581]
[1642223609909,1.66763311,3305.3,3304.8,0.0073895]
[1642223610112,1.71309611,3305.3,3304.8,0.0073895]
[1642223611311,0.75678,3305.1,3304.8,0.0073895]
[1642223611512,0.75678,3305.1,3304.9,2.58690064]
[1642223611912,0.75678,3305.1,3305.0,0.00625266]
[1642223612514,1.102243,3305.1,3305.0,0.00625266]
[1642223612962,1.384943,3305.1,3305.0,0.00625266]
[1642223613166,2.004943,3305.1,3305.0,0.00625266]
[1642223613363,1.95948,3305.1,3305.0,0.00625266]
[1642223613764,1.95948,3305.1,3304.5,0.00909477]
[1642223613964,0.045463,3305.0,3304.5,0.00909477]
[1642223614163,1.0,3305.0,3304.5,0.00909477]
[1642223614364,1.0,3305.0,3304.4,1.2066]
[1642223614365,0.090926,3304.6,3304.4,1.2066]
[1642223614563,0.090926,3304.6,3304.3,3.476994]
[1642223614564,0.045463,3304.5,3304.3,0.121094]
[1642223614764,0.045463,3304.4,3304.3,0.121094]
[1642223615065,0.994263,3304.4,3304.3,0.12223085]
[1642223615364,0.994263,3304.4,3304.3,0.41902824]
[1642223616169,1.51441,3303.9,3303.0,2.30044446]
[1642223616365,0.045463,3303.4,3303.0,2.30044446]
[1642223616622,0.090926,3303.3,3303.0,2.30044446]
[1642223616811,0.045463,3303.3,3303.0,2.30044446]
[1642223617009,0.345463,3303.3,3303.2,1.5398823]
[1642223617411,0.345463,3303.3,3303.2,3.88822017]
[1642223617412,2.75230232,3303.3,3303.2,3.88822017]
[1642223617713,3.75230232,3303.3,3303.2,3.88822017]
[1642223618314,6.89357435,3303.3,3303.2,3.88822017]
[1642223619312,6.89357435,3303.3,3303.2,0.00625266]
[1642223619511,2.402773,3303.3,3303.2,0.00625266]
[1642223619711,2.40775353,3303.3,3303.0,0.00738951]
[1642223619913,1.0,3303.2,3303.0,0.00738951]
[1642223620112,0.76229053,3303.3,3302.9,0.00795793]
[1642223620359,0.00498053,3303.3,3302.9,2.66665591]
[1642223620559,0.00498053,3303.3,3302.9,4.01436884]
[1642223620762,0.00498053,3303.3,3303.0,0.00738951]
[1642223620964,0.05044353,3303.3,3303.0,0.00738951]
[1642223621160,0.05044353,3303.3,3302.9,0.00795793]
[1642223621562,0.045463,3303.2,3302.9,0.00795793]
[1642223622162,0.045463,3303.2,3303.0,2.58842776]
[1642223622663,0.090926,3303.2,3303.1,0.00682108]
[1642223622865,0.05044353,3303.3,3303.1,0.00682108]
[1642223623262,0.045463,3303.2,3303.1,0.00682108]
[1642223624320,0.045463,3303.2,3302.9,0.00795793]
[1642223624321,0.090926,3303.2,3302.9,0.00795793]
[1642223624522,0.00498053,3303.3,3303.1,0.00682108]
[1642223624720,0.00497625,3303.2,3302.9,0.00795793]
[1642223624920,0.05043925,3303.2,3302.9,0.00795793]
[1642223625522,0.05043925,3303.2,3302.9,2.69603791]
[1642223625723,0.00497625,3303.2,3302.9,2.69603791]
[1642223625923,0.00497625,3303.2,3303.0,0.00738951]
[1642223626323,0.00497625,3303.2,3302.9,0.00795793]
[1642223628966,0.00497625,3303.2,3302.9,2.66284384]
[1642223629167,0.05043925,3303.2,3302.9,0.00795793]
[1642223629365,0.045463,3303.3,3303.0,0.00738951]
[1642223629566,0.045463,3303.3,3302.9,2.66745842]
[1642223629767,0.00497197,3303.1,3302.9,2.66745842]
[1642223629967,0.00497197,3303.1,3303.0,5.90738951]
[1642223630168,0.00497197,3303.1,3303.0,8.76016103]
[1642223630566,0.00497197,3303.1,3303.0,2.86016103]
[1642223631728,1.0,3304.1,3303.1,2.5]
[1642223632025,1.35699,3304.2,3303.2,2.76815618]
[1642223632425,1.35699,3304.2,3303.4,1.23490452]
[1642223632826,1.35699,3304.2,3303.5,2.63205409]
[1642223633026,1.35699,3304.2,3303.5,0.00454739]
[1642223633224,1.35699,3304.2,3303.7,1.12823914]
[1642223633626,1.35699,3304.2,3303.8,0.00284212]
[1642223633831,1.35699,3304.2,3303.8,2.62512988]
[1642223634026,0.6,3304.2,3303.8,2.64555139]
[1642223634226,0.6,3304.2,3303.9,0.0022737]
[1642223634429,0.3,3304.2,3303.9,0.0022737]
[1642223634627,1.75712486,3304.4,3303.9,0.0022737]
[1642223634826,0.75712486,3304.4,3303.9,0.0022737]
[1642223635027,1.75712486,3304.4,3303.9,0.0022737]
[1642223635226,0.75712486,3304.4,3303.9,0.0022737]
[1642223635470,1.75712486,3304.4,3303.9,0.0022737]
[1642223635864,2.51406486,3304.4,3303.9,0.0022737]
[1642223636065,1.0,3304.3,3303.9,0.0022737]
[1642223636265,1.0,3304.3,3303.8,0.00284212]
[1642223636469,2.51406486,3304.4,3303.8,0.00284212]
[1642223636667,1.0,3304.3,3303.8,0.00284212]
[1642223637164,2.51406486,3304.4,3303.8,0.00284212]
[1642223637365,0.757,3304.1,3303.8,0.00284212]
[1642223637564,1.357,3304.1,3303.8,0.00284212]
[1642223638168,1.357,3304.1,3303.5,0.00454739]
[1642223638368,1.357,3304.1,3303.4,0.00511581]
[1642223639716,1.357,3304.1,3303.4,1.38513149]
[1642223640115,1.357,3304.1,3303.5,0.00454739]
[1642223640116,0.6,3304.1,3303.5,0.00454739]
[1642223640317,2.51410486,3304.4,3303.5,0.00454739]
[1642223640515,0.3,3304.0,3303.5,0.00454739]
[1642223640717,1.0,3304.3,3303.5,0.00454739]
[1642223640918,2.51410486,3304.4,3303.5,0.00454739]
[1642223641118,0.75703,3304.1,3303.5,0.00454739]
[1642223641418,1.35703,3304.1,3303.5,0.00454739]
[1642223643664,1.35703,3304.1,3303.3,4.9736]
[1642223643665,1.35703,3304.1,3303.4,0.00511581]
[1642223644866,1.15712486,3304.4,3303.4,0.00511581]
[1642223645066,0.15712486,3304.4,3303.4,0.00511581]
[1642223645266,0.15712486,3304.4,3303.4,1.53197939]
[1642223645468,0.75703,3304.1,3303.4,1.53197939]
[1642223645667,0.75703,3304.1,3303.5,0.00454739]
[1642223646266,1.35703,3304.1,3303.9,3.06725927]
[1642223646717,1.35703,3304.1,3304.0,0.00170527]
[1642223647118,1.35703,3304.1,3304.0,3.06896454]
[1642223647519,2.35703,3304.1,3304.0,3.06896454]
[1642223647716,1.35703,3304.1,3304.0,0.00170527]
[1642223647916,5.36294867,3304.1,3304.0,0.00170527]
[1642223648117,2.35703,3304.1,3304.0,0.00170527]
[1642223648517,2.35703,3304.1,3304.0,3.06896454]
[1642223648719,5.2593809,3304.1,3304.0,3.06896454]
[1642223649121,5.30430938,3304.1,3304.0,0.00170527]
[1642223649525,2.35703,3304.1,3304.0,0.00170527]
[1642223649719,2.35703,3304.1,3304.0,2.3134515]
[1642223650018,5.29615255,3304.1,3304.0,2.3134515]
[1642223650218,5.29615255,3304.1,3303.8,3.06725927]
[1642223650219,5.37261045,3304.1,3303.8,3.06725927]
[1642223650469,6.3429405,3304.1,3303.8,3.06725927]
[1642223650764,0.87088,3304.0,3303.8,3.06725927]
[1642223650965,0.87088,3304.0,3303.7,2.58799796]
[1642223650966,3.40876877,3303.9,3303.7,2.58799796]
[1642223651265,4.04877899,3303.8,3303.7,2.58799796]
[1642223651467,1.39338325,3303.6,3303.3,8.80767409]
[1642223651666,1.39338325,3303.6,3303.3,3.83407409]
[1642223651966,1.69338325,3303.6,3303.3,3.83407409]
[1642223652168,1.69338325,3303.6,3303.0,0.045463]
[1642223652569,0.75726,3303.5,3303.1,0.00511581]
[1642223652969,1.75726,3303.5,3303.1,0.00511581]
[1642223654423,2.92743564,3303.4,3303.1,0.00511581]
[1642223654621,1.0,3303.3,3303.1,0.00511581]
[1642223654925,4.75216358,3303.5,3303.1,0.00511581]
[1642223655122,4.69780573,3303.5,3303.1,0.00511581]
[1642223655322,1.75726,3303.5,3303.1,0.00511581]
[1642223655723,2.949584,3303.4,3303.1,0.00511581]
[1642223655923,3.779484,3303.4,3303.1,0.00511581]
[1642223656122,1.0,3303.3,3303.1,0.00511581]
[1642223656322,0.75729,3303.2,3303.1,0.00511581]
[1642223656522,1.05729,3303.2,3303.1,0.00511581]
[1642223656723,1.35729,3303.2,3303.1,0.00511581]
[1642223656922,0.6,3303.2,3303.1,0.00511581]
[1642223657123,0.15704416,3303.4,3303.0,0.00568424]
[1642223657427,1.6,3303.5,3302.9,0.00625266]
[1642223657623,2.51423259,3303.5,3302.9,0.00625266]
[1642223657869,1.75704259,3303.5,3302.9,0.00625266]
[1642223658070,1.51462,3303.3,3302.9,0.00625266]
[1642223658473,0.75724,3303.2,3302.9,0.00625266]
[1642223659075,0.75724,3303.2,3303.0,3.08910398]
[1642223659472,0.75724,3303.2,3303.0,3.03910398]
[1642223660475,1.54795763,3303.2,3303.0,3.03910398]
[1642223660673,1.54795763,3303.2,3302.9,0.00625266]
[1642223661074,1.54795763,3303.2,3302.7,0.00738951]
[1642223662016,1.62441553,3303.2,3302.7,0.00738951]
[1642223662217,4.53085945,3303.2,3302.7,0.00738951]
[1642223662416,5.52555945,3303.2,3302.7,0.00738951]
[1642223662620,1.0,3303.1,3302.7,0.00738951]
[1642223662818,0.75736,3302.9,3302.5,0.00852635]
[1642223663017,0.3,3302.8,3302.4,0.00909478]
[1642223663617,0.3,3302.8,3302.4,2.63568546]
[1642223664020,1.3764579,3303.0,3302.5,0.00852635]
[1642223664616,1.0764579,3303.0,3302.5,0.00852635]
[1642223664818,1.0,3303.0,3302.5,0.00852635]
[1642223665017,1.05728,3303.0,3302.5,0.00852635]
[1642223665469,2.95048241,3302.9,3302.5,0.00852635]
[1642223665665,1.0,3302.8,3302.4,0.00909478]
[1642223665865,1.3,3302.8,3302.4,0.00909478]
[1642223666064,0.3,3302.8,3302.4,0.00909478]
[1642223666267,0.6764579,3303.0,3302.4,1.55415046]
[1642223666466,0.75735,3302.7,3302.4,1.55415046]
[1642223666665,0.75735,3302.7,3302.5,0.00852635]
[1642223666965,1.35735,3302.7,3302.5,0.00852635]
[1642223667365,1.35735,3302.7,3302.5,2.59735174]
[1642223667567,0.6,3302.7,3302.5,2.59735174]
[1642223667770,0.6,3302.7,3302.6,0.00795793]
[1642223667966,0.3,3302.7,3302.6,0.00795793]
[1642223668365,0.3,3302.9,3302.6,0.00795793]
[1642223668565,0.3,3302.9,3302.5,0.00852635]
[1642223669223,2.39071763,3303.2,3302.5,0.00852635]
[1642223669919,0.75726,3303.1,3302.5,0.00852635]
[1642223670121,0.75726,3303.1,3302.4,1.50358203]
[1642223670323,0.00284211,3303.0,3302.4,1.50358203]
[1642223670720,0.00227369,3302.9,3302.4,1.50358203]
[1642223671121,0.00170527,3302.8,3302.4,1.50358203]
[1642223671320,0.75904527,3302.8,3302.3,4.8351]
[1642223671521,0.00113684,3302.7,3302.3,4.8351]
[1642223673274,0.00113684,3302.7,3302.4,2.5888565]
[1642223676718,0.00113684,3302.7,3302.5,1.45613553]
[1642223677719,0.00113684,3302.7,3302.6,5.21989307]
[1642223678217,0.00113684,3302.7,3302.6,6.40809307]
[1642223679320,0.00113684,3302.7,3302.6,3.7770565]
[1642223679520,0.00113684,3302.7,3302.6,6.40380619]
[1642223680120,0.00113684,3302.7,3302.6,2.5888565]
[1642223680373,2.44999648,3302.7,3302.6,2.5888565]
[1642223680575,2.74999648,3302.7,3302.6,2.5888565]
[1642223680771,3.04999648,3302.7,3302.6,2.5888565]
[1642223680972,6.76010963,3302.7,3302.6,2.5888565]
[1642223681173,6.76010963,3302.7,3302.1,5.16631998]
[1642223681375,0.75753,3302.4,3302.1,5.16631998]
[1642223681576,2.35753,3302.4,3302.2,0.00170527]
[1642223682374,1.75753,3302.4,3302.2,0.00170527]
[1642223682574,2.44999648,3302.7,3302.2,0.00170527]
[1642223682575,1.0,3302.6,3302.2,0.00170527]
[1642223682775,1.0,3302.4,3302.2,0.00170527]
[1642223682975,1.6,3302.6,3302.2,0.00170527]
[1642223683180,0.07759474,3302.7,3302.2,0.00170527]
[1642223683377,0.3,3302.5,3302.2,0.00170527]
[1642223683576,0.07759474,3302.7,3302.2,0.00170527]
[1642223683975,0.37759474,3302.7,3302.2,0.00170527]
[1642223685830,0.37759474,3302.7,3302.6,1.50235022]
[1642223686029,0.37759474,3302.7,3302.2,0.00170527]
[1642223686330,0.37759474,3302.7,3302.0,0.00284212]
[1642223687129,0.37759474,3302.7,3302.4,1.17932648]
[1642223687331,1.13494474,3302.7,3302.4,1.17932648]
[1642223687536,2.43494474,3302.7,3302.4,1.17932648]
[1642223688167,2.43494474,3302.7,3302.0,0.00284212]
[1642223688771,5.41473889,3302.7,3302.0,0.00284212]
[1642223688970,2.43494474,3302.7,3302.0,0.00284212]
[1642223689173,2.43494474,3302.7,3302.4,1.39806794]
[1642223690675,2.9463243,3302.6,3302.4,1.39806794]
[1642223690876,3.0639243,3302.6,3302.0,0.00284212]
[1642223691071,0.75761,3302.3,3302.0,0.00284212]
[1642223691272,1.17278441,3302.3,3301.8,0.00397897]
[1642223691471,3.99418105,3302.3,3301.8,0.00397897]
[1642223691723,5.29418105,3302.3,3301.8,0.00397897]
[1642223691925,5.29418105,3302.3,3301.9,1.14662466]
[1642223692124,2.4340679,3302.3,3301.9,1.14662466]
[1642223692323,2.4340679,3302.3,3302.0,0.00284212]
[1642223692623,0.00113684,3302.7,3302.0,2.99462942]
[1642223692824,0.00113684,3302.7,3302.5,0.045463]
[1642223693024,0.00113684,3302.7,3302.6,1.25045981]
[1642223693725,0.75847684,3302.7,3302.6,1.25045981]
[1642223695774,0.00113684,3302.7,3302.6,1.25045981]
[1642223697379,2.5294446,3303.5,3302.7,4.85]
[1642223697580,1.51421,3304.1,3303.4,0.045463]
[1642223697784,0.94795537,3304.5,3303.9,0.045463]
[1642223697978,3.31982034,3304.5,3303.9,0.045463]
[1642223698177,0.03906187,3304.0,3303.9,0.045463]
[1642223698581,0.79611187,3304.0,3303.9,0.045463]
[1642223698780,0.79611187,3304.0,3303.4,0.045463]
[1642223699140,0.00682108,3303.9,3303.1,4.758]
[1642223699527,0.00625266,3303.8,3303.1,4.758]
[1642223699928,0.00568424,3303.7,3303.1,4.758]
[1642223700329,0.03167236,3304.0,3303.1,4.758]
[1642223700330,0.00511581,3303.6,3303.1,4.758]
[1642223700729,0.00454739,3303.5,3303.1,4.758]
[1642223701028,0.00397897,3303.4,3303.1,4.758]
[1642223701231,0.00397897,3303.4,3303.2,1.33159207]
[1642223701429,0.03167236,3304.0,3303.3,1.18319129]
[1642223701628,0.75718,3303.5,3303.3,1.18319129]
[1642223701828,1.05718,3303.5,3303.3,1.18319129]
[1642223702029,1.35718,3303.5,3303.3,1.18319129]
[1642223702228,0.6,3303.5,3303.3,1.18319129]
[1642223702429,0.3,3303.5,3303.3,1.18319129]
[1642223702729,0.0764579,3303.4,3303.3,1.18319129]
[1642223703570,0.0764579,3303.4,3303.3,1.22865429]
[1642223704170,0.3,3303.6,3303.3,1.22865429]
[1642223704371,0.3764579,3303.8,3303.3,1.22865429]
[1642223704572,0.00454739,3303.5,3303.3,1.22865429]
[1642223704770,0.00568424,3303.7,3303.4,2.59720603]
[1642223704973,0.00397897,3303.4,3303.3,1.22865429]
[1642223705170,0.00511581,3303.6,3303.3,2.65382199]
[1642223705372,0.00397897,3303.4,3303.3,0.045463]
[1642223705571,0.00454739,3303.5,3303.3,0.045463]
[1642223705770,0.00397897,3303.4,3303.3,0.045463]
[1642223707221,0.00397897,3303.4,3303.3,2.67147353]
[1642223709424,1.33692955,3303.4,3303.3,2.67147353]
[1642223710226,1.33692955,3303.4,3303.3,5.77147353]
[1642223710872,9.37215912,3305.1,3303.4,4.74825161]
[1642223711072,9.37215912,3305.1,3305.0,0.045463]
[1642223711274,7.75729554,3305.1,3305.0,0.045463]
[1642223711676,6.21,3305.1,3305.0,0.045463]
[1642223711873,6.21,3305.1,3305.0,1.47341608]
[1642223712082,0.79027874,3305.9,3305.0,4.20744205]
[1642223712275,0.79027874,3305.9,3305.8,0.045463]
[1642223712572,1.23061624,3306.2,3305.8,1.30281774]
[1642223712772,1.21800468,3306.2,3305.8,1.30281774]
[1642223713074,0.01534743,3306.1,3305.8,1.30281774]
[1642223713273,0.01534743,3306.1,3305.9,3.95974341]
[1642223713472,0.01477901,3306.0,3305.9,1.32834622]
[1642223713672,0.01477901,3306.0,3305.9,3.93097021]
[1642223714324,0.01477901,3306.0,3305.9,1.32834622]
[1642223714522,0.01477901,3306.0,3305.8,4.70011774]
[1642223714720,0.01477901,3306.0,3305.8,3.045463]
[1642223714922,0.01421058,3305.9,3305.8,3.0]
[1642223715920,0.01421058,3305.9,3305.8,4.37136541]
[1642223716121,0.01421058,3305.9,3305.8,4.41682841]
[1642223717621,0.01421058,3305.9,3305.8,7.09716723]
[1642223719670,0.01421058,3305.9,3305.8,4.37136541]
[1642223720069,0.01421058,3305.9,3305.8,3.0]
[1642223731621,0.01421058,3305.9,3305.8,3.045463]
[1642223732421,0.01421058,3305.9,3305.8,3.0]
[1642223732628,0.01421058,3305.9,3305.8,3.045463]
[1642223733074,0.01421058,3305.9,3305.8,3.0]
[1642223735676,0.01421058,3305.9,3305.8,3.045463]
[1642223736079,0.01421058,3305.9,3305.8,3.820563]
[1642223736929,0.0291,3306.6,3306.2,1.19487832]
[1642223737230,0.0291,3306.6,3306.5,0.045463]
[1642223737628,0.03307897,3306.6,3306.5,0.045463]
[1642223738031,0.03307897,3306.6,3306.3,0.045463]
[1642223738434,0.00341054,3306.5,3306.3,0.045463]
[1642223738829,0.00284212,3306.4,3306.3,0.045463]
[1642223739229,0.00341054,3306.4,3306.3,0.045463]
[1642223743972,0.00341054,3306.4,3306.1,0.045463]
[1642223744229,0.00341054,3306.4,3305.9,1.1813]
[1642223744526,4.28785298,3307.0,3305.9,1.1813]
[1642223744527,0.0022737,3306.3,3305.9,1.1813]
[1642223745023,0.00170527,3306.2,3305.9,1.1813]
[1642223745424,0.00113685,3306.1,3305.9,1.1813]
[1642223745823,0.00284212,3306.4,3305.9,1.1813]
[1642223746125,0.0022737,3306.3,3305.9,1.1813]
[1642223746526,0.00170527,3306.2,3305.9,1.1813]
[1642223746924,0.00113685,3306.1,3305.9,1.1813]
[1642223747323,0.00284212,3306.4,3305.9,1.1813]
[1642223747723,0.0022737,3306.3,3305.9,1.1813]
[1642223748185,0.00170527,3306.2,3305.9,1.1813]
[1642223748586,0.00113685,3306.1,3305.9,1.1813]
[1642223748984,0.00284212,3306.4,3305.9,1.1813]
[1642223749386,0.0022737,3306.3,3305.9,1.1813]
[1642223749682,0.00170527,3306.2,3305.9,1.1813]
[1642223750084,0.00113685,3306.1,3305.9,1.1813]
[1642223750486,1.0,3306.8,3306.0,0.045463]
[1642223750487,0.00284212,3306.4,3306.0,0.045463]
[1642223750985,0.0022737,3306.3,3306.2,0.045463]
[1642223752732,0.0022737,3306.3,3306.2,2.6322634]
[1642223758669,0.0022737,3306.3,3306.2,0.045463]
[1642223761525,0.0022737,3306.3,3306.2,1.24713221]
[1642223762525,0.0022737,3306.3,3306.2,1.34538382]
[1642223762725,0.0022737,3306.3,3306.2,25.2395012]
[1642223763175,0.0022737,3306.3,3306.2,25.8395012]
[1642223763575,0.0022737,3306.3,3306.2,1.34538382]
[1642223763978,0.0022737,3306.3,3306.2,3.31919378]
[1642223764181,0.0022737,3306.3,3306.2,21.00919378]
[1642223766181,0.0022737,3306.3,3306.2,19.03538382]
[1642223766385,0.0022737,3306.3,3306.2,1.34538382]
[1642223770378,0.0022737,3306.3,3306.2,4.21511597]
[1642223778671,0.24713214,3307.9,3307.0,1.32825252]
[1642223778879,0.24713214,3307.9,3307.1,0.01751022]
[1642223779074,0.00625266,3307.4,3307.0,1.32825252]
[1642223779476,0.00568423,3307.3,3307.0,1.32825252]
[1642223779774,0.00511581,3307.2,3307.0,1.32825252]
[1642223780173,0.00454739,3307.1,3307.0,1.32825252]
[1642223783221,0.00454739,3307.1,3306.8,0.045463]
[1642223783421,0.00454739,3307.1,3306.7,0.045463]
[1642223783621,0.00397896,3307.0,3306.7,0.045463]
[1642223784021,0.00341054,3306.9,3306.7,0.045463]
[1642223784425,0.00284211,3306.8,3306.7,0.045463]
[1642223785023,0.00284211,3306.8,3306.7,3.0]
[1642223786772,0.00284211,3306.8,3306.7,4.25041938]
[1642223787471,0.00284211,3306.8,3306.7,4.29588238]
[1642223788373,0.00284211,3306.8,3306.7,8.39800406]
[1642223789233,0.00284211,3306.8,3306.7,9.58780406]
[1642223789929,0.00284211,3306.8,3306.7,9.6374548]
[1642223790531,0.00284211,3306.8,3306.7,6.93652674]
[1642223791134,0.00284211,3306.8,3306.7,9.59375826]
[1642223791331,0.00284211,3306.8,3306.7,9.61817984]
[1642223792334,0.00284211,3306.8,3306.7,6.93652674]
[1642223792973,0.00284211,3306.8,3306.7,9.59802185]
[1642223793378,0.00284211,3306.8,3306.7,9.57953723]
[1642223794177,1.51206,3308.7,3306.7,27.86953723]
[1642223794375,0.0798279,3308.7,3307.5,0.045463]
[1642223794575,0.0798279,3308.7,3308.6,0.045463]
[1642223794975,0.09062795,3308.7,3308.6,0.045463]
[1642223795177,0.01080005,3308.7,3308.6,0.045463]
[1642223795378,0.09062795,3308.7,3308.6,0.045463]
[1642223795980,0.09062795,3308.7,3308.4,1.10399105]
[1642223796179,0.09062795,3308.7,3308.6,0.045463]
[1642223796380,0.0798279,3308.7,3308.6,0.045463]
[1642223797627,0.0798279,3308.7,3308.5,0.045463]
[1642223797827,0.0798279,3308.7,3308.4,1.10399105]
[1642223798029,0.01023163,3308.6,3308.4,1.10399105]
[1642223798227,0.76619163,3308.6,3308.4,1.14945405]
[1642223798429,0.0096632,3308.5,3308.4,1.14945405]
[1642223798628,0.0096632,3308.5,3308.4,1.10399105]
[1642223799527,0.0096632,3308.5,3308.2,0.045463]
[1642223799726,0.0096632,3308.5,3308.1,0.045463]
[1642223799930,0.00909478,3308.4,3308.2,0.045463]
[1642223800372,0.00852636,3308.3,3308.0,0.045463]
[1642223800771,0.32824885,3308.5,3308.0,0.045463]